[Event "WSTCC-65 2024"]
[Site "Krakow"]
[Date "2024.07.07"]
[Round "6.21"]
[White "Carvalho, Herbert Abreu"]
[Black "Beilfuss, Wilfried"]
[Result "1/2-1/2"]
[ECO "A15"]
[WhiteElo "2123"]
[BlackElo "2059"]
[Annotator "RC"]
[PlyCount "37"]
[EventDate "2024.07.01"]
[EventType "team-tourn"]
[EventCountry "POL"]
[SourceTitle "playchess.com"]
[Source "ChessBase"]
[SourceQuality "1"]
[TimeControl "40/5400+30:1800+30"]

1. c4 {[%emt 0:00:13]} Nf6 {[%emt 0:00:50]} 2. Nf3 {[%emt 0:00:07]} e6 {[%emt 0:00:38]} 3. g3 {[%emt 0:00:32]} d5 {[%emt 0:00:41]} 4. d4 {[%emt 0:04:57]} dxc4 {[%emt 0:00:25]} 5. Qa4+ {[%emt 0:00:58]} c6 {[%emt 0:00:30]} 6. Qxc4 {[%emt 0:00:08]} b5 {[%emt 0:00:12]} 7. Qc2 {[%emt 0:00:24]} Bb7 {[%emt 0:00:13]} 8. Bg2 {[%emt 0:00:10]} Nbd7 {[%emt 0:00:23]} 9. O-O {[%emt 0:00:32]} c5 {[%emt 0:03:35]} 10. a4 {[%emt 0:03:15]} b4 {[%emt 0:04:49]} 11. a5 {[%emt 0:01:46]} Rc8 {[%emt 0:01:40]} 12. dxc5 {[%emt 0:05:05]} Bxc5 {[%emt 0:00:33]} 13. Qd3 {[%emt 0:01:09]} O-O {[%emt 0:04:35]} 14. Be3 {[%emt 0:02:12]} Qe7 {[%emt 0:13:14]} 15. Nbd2 {[%emt 0:02:51]} Bxe3 {[%emt 0:03:23]} 16. Qxe3 {[%emt 0:00:17]} Nc5 {[%emt 0:00:46]} 17. Qd4 {[%emt 0:04:09]} b3 {[%emt 0:06:14]} 18. Rfc1 {[%emt 0:02:34]} Bd5 {[%emt 0:09:07]} 19. Qb4 {[%emt 0:05:52]} 1/2-1/2

[Event "WSTCC-65 2024"]
[Site "Krakow"]
[Date "2024.07.07"]
[Round "6.21"]
[White "O`Neill, Julie Anne"]
[Black "Sosnowska, Elzbieta"]
[Result "0-1"]
[ECO "D05"]
[WhiteElo "1806"]
[BlackElo "1810"]
[Annotator "NA RC"]
[PlyCount "62"]
[EventDate "2024.07.01"]
[EventType "team-tourn"]
[EventCountry "POL"]
[SourceTitle "playchess.com"]
[Source "ChessBase"]
[SourceQuality "1"]
[TimeControl "40/5400+30:1800+30"]

1. d4 {[%emt 0:00:04]} d5 {[%emt 0:00:13]} 2. Nf3 {[%emt 0:00:11]} Nf6 {[%emt 0:00:27]} 3. e3 {[%emt 0:00:11]} e6 {[%emt 0:01:59]} 4. Nbd2 {[%emt 0:00:43]} Nbd7 {[%emt 0:02:23]} 5. Bd3 {[%emt 0:00:28]} c5 {[%emt 0:00:21]} 6. c3 {[%emt 0:00:12]} Qc7 {[%emt 0:00:47]} 7. O-O {[%emt 0:00:54]} Be7 {[%emt 0:00:34]} 8. Re1 {[%emt 0:01:11]} O-O {[%emt 0:00:24]} 9. e4 {[%emt 0:02:21]} dxe4 {[%emt 0:00:31]} 10. Nxe4 {[%emt 0:00:14]} h6 {[%emt 0:00:35]} 11. h3 {[%emt 0:00:44]} b6 {[%emt 0:03:16]} 12. Nh2 {[%emt 0:01:23]} Bb7 {[%emt 0:00:13]} 13. Ng3 {[%emt 0:04:12]} Bd6 {[%emt 0:01:24]} 14. Nhf1 {[%emt 0:02:33]} Rad8 {[%emt 0:05:23]} 15. Bd2 {[%emt 0:01:27]} Qc6 {[%emt 0:05:24]} 16. f3 {[%emt 0:07:06]} Qc7 {[%emt 0:04:48]} 17. Ne4 {[%emt 0:03:10]} Be7 {[%emt 0:08:13]} 18. Rc1 {[%emt 0:04:38]} c4 {[%emt 0:03:30]} 19. Bc2 {[%emt 0:01:10]} Nd5 {[%emt 0:00:26]} 20. Ne3 {[%emt 0:03:48]} f5 {[%emt 0:01:24]} 21. Nxd5 {[%emt 0:01:37]} Bxd5 {[%emt 0:00:24]} 22. Nf2 {[%emt 0:01:02]} Qg3 {[%emt 0:03:25]} 23. Nh1 {[%emt 0:06:27]} Qh4 {[%emt 0:01:33]} 24. Be3 {[%emt 0:01:42]} Bd6 {[%emt 0:00:20]} 25. Bf2 {[%emt 0:00:53]} Qg5 {[%emt 0:00:38]} 26. Qe2 {[%emt 0:01:33]} Nf6 {[%emt 0:03:27]} 27. h4 {[%emt 0:07:43]} Qg6 {[%emt 0:02:47]} 28. b3 {[%emt 0:04:11]} b5 {[%emt 0:00:19]} 29. b4 {[%emt 0:01:15]} Nh5 {[%emt 0:00:11]} 30. a4 {[%emt 0:09:19]} Nf4 {[%emt 0:00:11]} 31. Qf1 {[%emt 0:03:12]} Nh3# {[%emt 0:00:22]} 0-1

[Event "WSTCC-65 2024"]
[Site "Krakow"]
[Date "2024.07.07"]
[Round "6.22"]
[White "Becker, Norbert"]
[Black "Barreto, Ignacio C. de Barros"]
[Result "1/2-1/2"]
[ECO "C47"]
[WhiteElo "2047"]
[BlackElo "2059"]
[Annotator "NA RC"]
[PlyCount "24"]
[EventDate "2024.07.01"]
[EventType "team-tourn"]
[EventCountry "POL"]
[SourceTitle "playchess.com"]
[Source "ChessBase"]
[SourceQuality "1"]
[TimeControl "40/5400+30:1800+30"]

1. e4 {[%emt 0:00:05]} e5 {[%emt 0:00:29]} 2. Nc3 {[%emt 0:00:27]} Nc6 {[%emt 0:04:13]} 3. Nf3 {[%emt 0:00:23]} Nf6 {[%emt 0:03:07]} 4. d4 {[%emt 0:00:18]} exd4 {[%emt 0:00:38]} 5. Nxd4 {[%emt 0:00:09]} Nxe4 {[%emt 0:00:30]} 6. Nxe4 {[%emt 0:02:44]} Qe7 {[%emt 0:00:06]} 7. f3 {[%emt 0:20:00]} d5 {[%emt 0:00:29]} 8. Nxc6 {[%emt 0:07:26]} bxc6 {[%emt 0:00:13]} 9. Qe2 {[%emt 0:05:54]} dxe4 {[%emt 0:00:54]} 10. Qxe4 {[%emt 0:05:11]} Qxe4+ {[%emt 0:08:21]} 11. fxe4 {[%emt 0:00:10]} Bd6 {[%emt 0:00:52]} 12. Be3 {[%emt 0:05:49]} O-O {[%emt 0:00:57]} 1/2-1/2

[Event "WSTCC-65 2024"]
[Site "Krakow"]
[Date "2024.07.07"]
[Round "6.23"]
[White "Moyses Sobrinho, Elias"]
[Black "Mueller, Gerhard"]
[Result "1/2-1/2"]
[ECO "D10"]
[WhiteElo "1908"]
[BlackElo "2070"]
[Annotator "NA RC"]
[PlyCount "47"]
[EventDate "2024.07.01"]
[EventType "team-tourn"]
[EventCountry "POL"]
[SourceTitle "playchess.com"]
[Source "ChessBase"]
[SourceQuality "1"]
[TimeControl "40/5400+30:1800+30"]

1. d4 {[%emt 0:00:06]} d5 {[%emt 0:00:06]} 2. c4 {[%emt 0:00:11]} c6 {[%emt 0:00:04]} 3. cxd5 {[%emt 0:00:14]} cxd5 {[%emt 0:00:02]} 4. Nc3 {[%emt 0:00:26]} Nc6 {[%emt 0:00:31]} 5. Bf4 {[%emt 0:00:18]} a6 {[%emt 0:01:17]} 6. e3 {[%emt 0:00:14]} Nf6 {[%emt 0:00:25]} 7. h3 {[%emt 0:00:17]} e6 {[%emt 0:03:23]} 8. a3 {[%emt 0:00:13]} Bd6 {[%emt 0:01:20]} 9. Bxd6 {[%emt 0:00:10]} Qxd6 {[%emt 0:00:01]} 10. Nf3 {[%emt 0:00:14]} O-O {[%emt 0:01:55]} 11. Be2 {[%emt 0:00:06]} b5 {[%emt 0:04:52]} 12. O-O {[%emt 0:00:30]} Bb7 {[%emt 0:06:14]} 13. b4 {[%emt 0:00:20]} Rac8 {[%emt 0:00:52]} 14. Rc1 {[%emt 0:00:15]} Rfd8 {[%emt 0:01:06]} 15. Qd3 {[%emt 0:03:07]} e5 {[%emt 0:10:07]} 16. dxe5 {[%emt 0:01:17]} Nxe5 {[%emt 0:00:05]} 17. Nxe5 {[%emt 0:00:10]} Qxe5 {[%emt 0:00:02]} 18. Rfd1 {[%emt 0:00:56]} Rd7 {[%emt 0:10:22]} 19. Bf3 {[%emt 0:05:58]} Rdc7 {[%emt 0:05:44]} 20. Ne2 {[%emt 0:10:15]} Qb2 {[%emt 0:08:32]} 21. Rxc7 {[%emt 0:01:27]} Rxc7 {[%emt 0:00:02]} 22. Rd2 {[%emt 0:03:25]} Qa1+ {[%emt 0:01:12]} 23. Rd1 {[%emt 0:01:00]} Qb2 {[%emt 0:00:07]} 24. Rd2 {[%emt 0:00:25]} 1/2-1/2

[Event "WSTCC-65 2024"]
[Site "Krakow"]
[Date "2024.07.07"]
[Round "6.23"]
[White "Shaughnessy, Elizabeth"]
[Black "Gasik, Jadwiga"]
[Result "0-1"]
[ECO "A40"]
[WhiteElo "1642"]
[BlackElo "1780"]
[Annotator "NA RC"]
[PlyCount "44"]
[EventDate "2024.07.01"]
[EventType "team-tourn"]
[EventCountry "POL"]
[SourceTitle "playchess.com"]
[Source "ChessBase"]
[SourceQuality "1"]
[TimeControl "40/5400+30:1800+30"]

1. d4 {[%emt 0:00:13]} c6 {[%emt 0:00:10]} 2. Bf4 {[%emt 0:00:08]} d6 {[%emt 0:01:11]} 3. e3 {[%emt 0:00:08]} g6 {[%emt 0:03:12]} 4. c3 {[%emt 0:00:25]} Bg7 {[%emt 0:00:13]} 5. Be2 {[%emt 0:00:08]} Nf6 {[%emt 0:00:36]} 6. h3 {[%emt 0:00:24]} Qb6 {[%emt 0:07:11]} 7. b3 {[%emt 0:00:35]} Bf5 {[%emt 0:01:52]} 8. Nd2 Nd5 {[%emt 0:04:08]} 9. Nc4 Qc7 10. Qd2 {[%emt 0:23:55]} Nxf4 {[%emt 0:00:58]} 11. exf4 {[%emt 0:00:10]} Nd7 {[%emt 0:13:02]} 12. Nf3 {[%emt 0:01:02]} Nf6 {[%emt 0:05:12]} 13. O-O {[%emt 0:05:17]} O-O {[%emt 0:08:13]} 14. Ne3 {[%emt 0:09:44]} Bd7 {[%emt 0:01:41]} 15. Bd3 {[%emt 0:02:33]} e6 {[%emt 0:03:40]} 16. Rac1 {[%emt 0:05:40]} Nh5 {[%emt 0:12:10]} 17. Nd1 {[%emt 0:05:42]} Bh6 {[%emt 0:05:25]} 18. g3 {[%emt 0:07:54]} e5 {[%emt 0:00:22]} 19. dxe5 dxe5 20. Re1 {[%emt 0:29:18]} Rae8 {[%emt 0:05:41]} 21. Kh2 {[%emt 0:06:36]} Nxf4 {[%emt 0:07:32]} 22. gxf4 {[%emt 0:00:26]} Bxf4+ 0-1

[Event "WSTCC-65 2024"]
[Site "Krakow"]
[Date "2024.07.07"]
[Round "6.24"]
[White "Lange, Torsten"]
[Black "Vieira, Alexandre Letizio"]
[Result "1/2-1/2"]
[ECO "A34"]
[WhiteElo "2027"]
[BlackElo "1825"]
[Annotator "RC"]
[PlyCount "101"]
[EventDate "2024.07.01"]
[EventType "team-tourn"]
[EventCountry "POL"]
[SourceTitle "playchess.com"]
[Source "ChessBase"]
[SourceQuality "1"]
[TimeControl "40/5400+30:1800+30"]

1. c4 {[%emt 0:00:03]} c5 {[%emt 0:00:06]} 2. Nc3 {[%emt 0:00:06]} Nf6 {[%emt 0:00:10]} 3. Nf3 {[%emt 0:00:09]} g6 {[%emt 0:00:21]} 4. d4 {[%emt 0:00:38]} cxd4 {[%emt 0:00:05]} 5. Nxd4 {[%emt 0:00:05]} Nc6 {[%emt 0:00:13]} 6. g3 {[%emt 0:00:40]} Bg7 {[%emt 0:00:06]} 7. Bg2 {[%emt 0:00:21]} O-O {[%emt 0:00:06]} 8. O-O {[%emt 0:00:25]} Nxd4 {[%emt 0:02:01]} 9. Qxd4 {[%emt 0:00:08]} a6 {[%emt 0:02:26]} 10. Qd3 {[%emt 0:01:14]} d6 {[%emt 0:01:09]} 11. Re1 {[%emt 0:02:46]} Qc7 {[%emt 0:04:54]} 12. b3 {[%emt 0:02:25]} Bd7 {[%emt 0:10:53]} 13. Bb2 {[%emt 0:00:31]} Bc6 {[%emt 0:03:42]} 14. e4 {[%emt 0:05:08]} Rab8 {[%emt 0:10:11]} 15. a4 {[%emt 0:17:00]} Rfe8 {[%emt 0:07:35]} 16. Rac1 {[%emt 0:18:37]} Ng4 {[%emt 0:10:30]} 17. h3 {[%emt 0:03:36]} Ne5 {[%emt 0:02:32]} 18. Qe3 {[%emt 0:00:21]} Qa5 {[%emt 0:04:28]} 19. Re2 {[%emt 0:04:08]} b5 {[%emt 0:02:50]} 20. cxb5 {[%emt 0:05:00]} axb5 {[%emt 0:00:13]} 21. f4 {[%emt 0:00:30]} Nd7 {[%emt 0:00:46]} 22. axb5 {[%emt 0:00:29]} Bxb5 {[%emt 0:00:36]} 23. Nxb5 {[%emt 0:00:13]} Qxb5 {[%emt 0:00:07]} 24. Bxg7 {[%emt 0:07:39]} Kxg7 {[%emt 0:00:05]} 25. Rb2 {[%emt 0:00:57]} Rec8 {[%emt 0:01:31]} 26. Rxc8 {[%emt 0:02:11]} Rxc8 {[%emt 0:00:04]} 27. b4 {[%emt 0:00:18]} h5 {[%emt 0:08:37]} 28. Bf1 {[%emt 0:01:21]} Qb6 {[%emt 0:02:27]} 29. Qxb6 {[%emt 0:00:47]} Nxb6 {[%emt 0:00:04]} 30. Kf2 {[%emt 0:02:23]} d5 {[%emt 0:00:17]} 31. exd5 {[%emt 0:00:45]} Nxd5 {[%emt 0:00:06]} 32. b5 {[%emt 0:00:21]} Rb8 {[%emt 0:03:16]} 33. Kf3 {[%emt 0:01:14]} f5 {[%emt 0:02:08]} 34. Rb3 {[%emt 0:06:21]} Kf6 {[%emt 0:00:26]} 35. Ra3 {[%emt 0:03:22]} e5 {[%emt 0:00:52]} 36. Ra6+ {[%emt 0:00:19]} Nb6 {[%emt 0:00:44]} 37. fxe5+ {[%emt 0:00:28]} Kxe5 {[%emt 0:00:05]} 38. h4 {[%emt 0:00:17]} Rb7 {[%emt 0:01:49]} 39. Be2 {[%emt 0:02:52]} Rb8 {[%emt 0:01:39]} 40. Ra7 {[%emt 0:10:35]} Kf6 {[%emt 0:02:47]} 41. Ke3 {[%emt 0:31:45]} Ke5 {[%emt 0:33:12]} 42. Kf3 {[%emt 0:00:00]} Rc8 {[%emt 0:00:00]} 43. Bd3 {[%emt 0:00:00]} Rc3 {[%emt 0:00:00]} 44. Ke3 {[%emt 0:00:00]} Nd5+ {[%emt 0:00:00]} 45. Kd2 {[%emt 0:00:00]} Kd4 {[%emt 0:00:00]} 46. Ra4+ {[%emt 0:00:00]} Kc5 {[%emt 0:00:00]} 47. Ra6 {[%emt 0:00:00]} Kd4 {[%emt 0:00:00]} 48. Ke2 {[%emt 0:00:00]} Rb3 {[%emt 0:00:00]} 49. Ra4+ {[%emt 0:00:00]} Ke5 {[%emt 0:00:00]} 50. Ra6 {[%emt 0:00:00]} Kd4 {[%emt 0:00:00]} 51. Ra4+ 1/2-1/2